{"text_format":"1","workbook":"xlsx","n_sheets":1,"sheets":["集計シート"],"not_rendered":{"charts":0,"images":0,"macros":0,"external_links":0,"defined_names":2,"comments":0,"pivot_tables":0},"unopened":[],"bounds":{"document_bytes":16777216,"sheet_cells":100000,"rows_first":2000,"rows_last":500,"rows_between":2000,"halvings":0,"cell_chars":16384,"cell_head_chars":4096},"cells_cut":0,"cells_raw":0,"read":"whole","date_system":"1900"}

{"sheet":"集計シート","index":0,"n_rows":260,"n_cols":13,"rows_kept":260,"cut":false,"hidden":false,"merged":[[2,2,3,2],[2,9,3,9],[2,10,3,10],[2,11,3,11],[2,12,3,12],[2,4,3,4],[2,5,3,5],[2,6,3,6],[2,7,3,7],[2,8,3,8],[2,3,3,3],[201,0,213,0],[214,0,219,0],[220,0,226,0],[241,0,241,1],[259,0,259,1],[4,0,4,1],[5,0,7,0],[125,0,128,0],[133,0,133,1],[139,0,145,0]]}
["令和●年度　○○区地域包括支援センター業務実績報告書 "]
["●月報告"]
["１．個別ケース相談受付実績",null,"区合計","センター１","センター２","センター３","センター４","センター５","センター６","センター７","センター８","センター９","センター１０"]
["●【1】相談受付分類"]
["地域包括支援センターが新規・再相談を受けた件数",null,{"$f":"SUM(D5:M5)","v":0}]
["（内訳）","新規ケース",{"$f":"SUM(D6:M6)","v":0}]
[null,"再相談ケース",0]
[null,"不明",0]
[]
["●【２】相談受付方法　※複数回答有"]
["来所（包括支援Ｃ内）",null,{"$f":"SUM(D11:M11)","v":0}]
["ＴＥＬ",null,0]
["訪問",null,0]
["メール",null,0]
["その他",null,0]
[]
["●【３】相談経路　※複数回答有"]
["家族",null,{"$f":"SUM(D18:M18)","v":0}]
["知人・友人",null,0]
["地域住民",null,{"$f":"SUM(D20:M20)","v":0}]
["ケアマネジャー",null,0]
["事業所",null,0]
["民生委員",null,0]
["リーフレット",null,0]
["インターネット",null,0]
["行政機関",null,0]
["医療機関",null,0]
["不明",null,0]
["その他",null,0]
[]
["●【４】相談者　※複数回答有"]
["本人",null,{"$f":"SUM(D32:M32)","v":0}]
["家族・親族",null,0]
["友人",null,0]
["民生委員",null,0]
["町内会・自治会・地域住民など",null,0]
["ケアマネジャー",null,0]
["サービス事業所",null,0]
["障害関係事業所",null,0]
["医療機関",null,0]
["弁護士・司法書士など（権利擁護）",null,0]
["区役所（高齢者支援係）",null,0]
["区役所（介護認定給付係）",null,0]
["区役所（保護課）",null,0]
["区役所（障害者支援係）",null,0]
["区役所（地域支援課）",null,0]
["区役所（その他）",null,0]
["その他",null,0]
["不明",null,0]
[]
["●【５】本人の年齢"]
["65歳未満",null,{"$f":"SUM(D52:M52)","v":0}]
["65～74歳",null,0]
["75～85歳",null,0]
["85歳歳以上",null,0]
["不明",null,0]
[]
["●【６】本人の性別"]
["男性",null,{"$f":"SUM(D59:M59)","v":0}]
["女性",null,0]
["その他",null,0]
["不明",null,0]
[]
["●【７】世帯構成"]
["独居",null,{"$f":"SUM(D65:M65)","v":0}]
["夫婦のみ",null,0]
["家族と同居",null,0]
["その他",null,0]
["不明",null,0]
[]
["●【８】認定申請状況"]
["未申請",null,{"$f":"SUM(D72:M72)","v":0}]
["申請中",null,0]
["事業対象者",null,0]
["要支援１",null,0]
["要支援２",null,0]
["要介護１",null,0]
["要介護２",null,0]
["要介護３",null,0]
["要介護４",null,0]
["要介護５",null,0]
["不明",null,0]
[]
["●【９】相談内容（主訴）　※複数回答有"]
["介護給付",null,{"$f":"SUM(D85:M85)","v":0}]
["予防給付・総合事業",null,0]
["介護保険関連（申請）",null,0]
["本人の介護に関する相談",null,0]
["介護者の負担",null,0]
["介護離職",null,0]
["障害等他分野の相談",null,0]
["複合的な課題",null,0]
["市単サービス",null,0]
["インフォーマルサポート",null,0]
["施設入所",null,0]
["介護方法等",null,0]
["医療・健康管理全般",null,0]
["安否確認",null,0]
["判断能力を欠く常況（成年後見含む）",null,0]
["認知症（判断能力低下など疑い含む）",null,0]
["支援拒否・援助希求無",null,0]
["虐待",null,0]
["生活保護・困窮・経済的な相談",null,0]
["その他生活上の課題（生活支援）",null,0]
["苦情・トラブル",null,0]
["その他",null,0]
[]
[]
["●【10】対応方針（月締め時点）"]
["対応中・対応保留",null,{"$f":"SUM(D110:M110)","v":0}]
["継続（権利擁護・虐待）",null,{"$f":"SUM(D111:M111)","v":0}]
["継続（他機関と連携して介入・ケアマネ支援等）",null,0]
["継続（包括のみ介入）",null,0]
["継続（その他）",null,0]
["終結（介護サービス利用・施設入所）",null,0]
["終結（予防プラン作成）",null,0]
["終結（死亡・転居届）",null,0]
["終結（課題解決・対応終了）",null,0]
["終結（その他）",null,0]
[]
[]
[]
["２．実態把握事業"]
["●【1】継続対応中　※給付管理対象者以外"]
["継続対応中",null,{"$f":"SUM(D125:M125)","v":0}]
["(内訳）","権利擁護・虐待",0]
[null,"他機関と連携して介入",0]
[null,"包括以外に関わり無等",0]
[null,"その他",0]
[]
["●【2】その他の実態把握対象者　※給付管理対象者以外"]
["上記以外の実態把握対象者",null,{"$f":"SUM(D132:M132)","v":0}]
["(内訳）","実態把握対象者",0]
["継続的にかかわっていない実態把握対象者のモニタリング件数",null,0]
[]
[]
["３．包括的・継続的ケアマネジメント支援事業実績"]
["●【1】個別ケア会議"]
["個別ケア会議開催件数",null,{"$f":"SUM(D139:M139)","v":0}]
["(開催目的）複数選択有","支援方針検討",0]
[null,"専門機関連携",0]
[null,"行政部署との連携",0]
[null,"支援者支援",0]
[null,"地域連携",0]
[null,"苦情・トラブル",0]
[null,"その他",0]
[]
["●【2】個別ケア会議の参加者　※複数選択有"]
["複合的な課題がある世帯",null,{"$f":"SUM(D149:M149)","v":0}]
["家族介護者の介護負担",null,0]
[]
["●【3】個別ケア会議の参加者　※複数選択有"]
["本人",null,{"$f":"SUM(D153:M153)","v":0}]
["家族",null,0]
["知人",null,0]
["民生委員",null,0]
["地域住民(地縁組織含む)",null,0]
["ケアマネジャー",null,0]
["介護サービス事業所",null,0]
["権利擁護専門職",null,0]
["医療機関・薬局",null,0]
["地域リハ拠点",null,0]
["生活支援コーディネーター",null,0]
["地域ケアコーディネーター",null,0]
["障害者相談支援センター",null,0]
["障害サービス事業所",null,0]
["地域支援室",null,0]
["高齢者支援係",null,0]
["障害者支援係",null,0]
["精神保健係",null,0]
["保護課",null,0]
["地域支援課",null,0]
["その他行政",null,0]
["他地域包括支援センター",null,0]
["その他",null,0]
[]
["●【4】個別ケア会議の主な論点　※複数選択有"]
["認知症",null,{"$f":"SUM(D178:M178)","v":0}]
["障害",null,0]
["精神疾患",null,0]
["身寄り無・KP不在等",null,0]
["支援拒否・援助希求無",null,0]
["金銭管理",null,0]
["成年後見制度関係",null,0]
["経済問題",null,0]
["ごみ問題",null,0]
["医療との連携",null,0]
["他分野の支援者との連携",null,0]
["支援者の役割分担",null,0]
["支援者の経験・スキル",null,0]
["家族関係・トラブル",null,0]
["ご近所トラブル",null,0]
["他苦情・トラブル",null,0]
["自立支援・介護予防",null,0]
["入退院時支援",null,0]
["健康管理",null,0]
["その他",null,0]
[]
["４．地域活動支援・機関連携ネットワーク関係実績"]
["■【１】対象機関(主催団体・機関）属性"]
["地域包括支援センターが関わった団体・機関の件数　計",null,{"$f":"SUM(D201:M201)","v":0}]
["地域\n","民児協",0]
[null,"町会・自治会",0]
[null,"老人会・老人クラブ",0]
[null,"地区社協",0]
[]
[null,"その他ボランティア団体",{"$f":"SUM(D207:M207)","v":0}]
[null,"家族会",0]
[null,"自主活動団体",0]
[null,"団地・マンション管理組合等",0]
[null,"商店会等商業関係",0]
[null,"ＪＡ・郵便局等金融関係",0]
[null,"その他",0]
[null,"小計",0]
["施設等\n","いこいの家",0]
[null,"老人福祉センター",0]
[null,"小規模多機能型施設・グループホーム",0]
[null,"学校等教育関係",0]
[null,"その他",0]
[null,"小計",0]
["専門機関\n団体\n","居宅介護支援事業所・介護支援専門員連絡会等",0]
[null,"介護サービス事業所・介護サービス連絡会等",0]
[null,"区地域みまもり支援センター",0]
[null,"警察・消防",0]
[null,"医療機関",0]
[null,"その他",0]
[null,"小計",0]
[]
["■【２】包括が活動・支援を行った対象機関の活動の場の内訳"]
["会食会",null,{"$f":"SUM(D230:M230)","v":0}]
["ミニデイ",null,0]
["公園体操",null,0]
["その他体操教室等",null,0]
["サロン",null,0]
["趣味の会",null,0]
["お祭り等地域のイベント",null,0]
["健康教室",null,0]
["いこい元気広場",null,0]
[null,null,0]
["定例会・会議・研修会等",null,0]
["その他",null,0]
["計",null,0]
[]
["■【３】包括の活動・支援内容内訳(複数回答有）"]
["参加・見学(顔合わせ）",null,{"$f":"SUM(D245:M245)","v":0}]
["地域包括支援センターについての周知・広報",null,0]
["介護保険制度についての説明等",null,0]
["権利擁護関連についての周知・広報",null,0]
["認知症について普及啓発",null,0]
["介護予防等のミニ講話・説明等",null,0]
["相談・意見交換会",null,0]
["事例検討会への協力・支援",null,0]
["研修会等への協力・支援",null,0]
["委員・メンバーとして協力・支援",null,0]
["その他情報提供",null,0]
["場所の提供",null,0]
["その他",null,0]
[]
["■【４】新規ネットワーク構築に向けてのアプローチ"]
["計",null,{"$f":"SUM(D260:M260)","v":0}]